bitfinex/quotes_SOLUSD_20220105
["timestamp","ask_amount","ask_price","bid_price","bid_amount"]
[1641362006122,92.7,168.97,168.89,9.38]
[1641362008426,92.7,168.97,168.89,10.85846154]
[1641362008625,92.7,168.97,168.89,9.38]
[1641362009325,2.30556834,168.96,168.89,9.38]
[1641362015234,2.30556834,168.96,168.89,9.12]
[1641362016035,25.73936834,168.96,168.89,9.12]
[1641362016636,25.73936834,168.96,168.89,9.38]
[1641362018939,2.30556834,168.96,168.89,9.38]
[1641362019339,92.7,168.97,168.89,9.38]
[1641362019740,22.9611,168.99,168.89,9.38]
[1641362019942,22.9611,168.99,168.9,22.9813]
[1641362020141,22.9611,168.99,168.91,8.56]
[1641362020342,2.6905532,168.98,168.91,8.56]
[1641362020541,2.6905532,168.98,168.91,9.32]
[1641362031380,22.9611,168.99,168.91,9.32]
[1641362038786,81.13565333,169.0,168.91,9.32]
[1641362039787,81.13565333,169.0,168.91,9.38]
[1641362049001,81.13565333,169.0,168.91,10.85846154]
[1641362052300,78.6055,169.0,168.91,10.85846154]
[1641362053403,3.01175767,168.99,168.91,10.85846154]
[1641362062316,27.71735767,168.99,168.91,10.85846154]
[1641362063919,27.71735767,168.99,168.91,10.59846154]
[1641362065318,27.71735767,168.99,168.91,10.85846154]
[1641362069029,27.71735767,168.99,168.91,9.38]
[1641362072629,3.01175767,168.99,168.91,9.38]
[1641362072830,24.4039,169.01,168.91,10.85846154]
[1641362073051,24.4039,169.01,168.92,23.8133]
[1641362073250,24.9039,169.01,168.93,8.56]
[1641362073452,24.9039,169.01,168.93,36.8713837]
[1641362073653,24.9039,169.01,168.93,9.32]
[1641362073854,2.84841959,169.0,168.93,9.32]
[1641362074255,3.34841959,169.0,168.93,9.32]
[1641362076859,2.84841959,169.0,168.93,9.32]
[1641362082964,3.34841959,169.0,168.93,8.56]
[1641362083169,3.34841959,169.0,168.93,9.06]
[1641362083970,2.84841959,169.0,168.93,9.06]
[1641362084570,2.84841959,169.0,168.93,9.32]
[1641362086969,3.34841959,169.0,168.93,9.32]
[1641362089871,3.34841959,169.0,168.93,8.82]
[1641362089872,2.84841959,169.0,168.93,8.82]
[1641362090069,24.4039,169.01,168.93,8.82]
[1641362090270,24.9039,169.01,168.93,8.82]
[1641362090469,24.9039,169.01,168.93,9.32]
[1641362091269,2.59756223,169.0,168.93,9.32]
[1641362093773,24.4039,169.01,168.93,9.32]
[1641362095173,27.38848055,169.01,168.93,9.32]
[1641362100307,27.38848055,169.01,168.93,9.06]
[1641362102310,27.38848055,169.01,168.93,9.32]
[1641362119028,27.38848055,169.01,168.93,9.06]
[1641362120227,24.4039,169.01,168.93,9.06]
[1641362120427,24.4039,169.01,168.94,1.47846154]
[1641362120628,24.4039,169.01,168.95,8.56]
[1641362120831,24.4039,169.01,168.96,28.97139619]
[1641362121029,24.4039,169.01,168.97,8.56]
[1641362121429,24.4039,169.01,168.97,8.82]
[1641362125333,24.4039,169.01,168.97,9.32]
[1641362125962,24.4039,169.01,168.97,8.82]
[1641362127962,2.90374294,169.02,168.97,8.82]
[1641362131667,2.90374294,169.02,168.97,8.56]
[1641362132966,2.90374294,169.02,168.97,8.82]
[1641362140879,2.90374294,169.02,168.97,9.32]
[1641362142480,2.90374294,169.02,168.97,8.82]
[1641362147520,22.5873,169.03,168.97,8.82]
[1641362147721,23.0873,169.03,168.97,8.82]
[1641362147921,23.0873,169.03,168.97,9.32]
[1641362148121,22.5873,169.03,168.97,9.32]
[1641362148924,24.85814161,169.03,168.97,9.32]
[1641362149523,25.35814161,169.03,168.97,9.32]
[1641362149923,25.35814161,169.03,168.97,8.82]
[1641362150224,23.0873,169.03,168.97,9.32]
[1641362151626,25.70876842,169.03,168.97,9.32]
[1641362156028,25.70876842,169.03,168.97,8.82]
[1641362159433,25.70876842,169.03,168.97,9.32]
[1641362160734,25.20876842,169.03,168.97,9.32]
[1641362164989,25.70876842,169.03,168.97,9.32]
[1641362165979,25.70876842,169.03,168.97,8.82]
[1641362167285,25.70876842,169.03,168.97,9.32]
[1641362168183,22.5873,169.03,168.97,9.32]
[1641362169284,2.88294028,169.06,168.97,9.32]
[1641362170987,3.38294028,169.06,168.97,9.32]
[1641362171391,2.88294028,169.06,168.97,9.32]
[1641362180101,2.88294028,169.06,168.97,10.79846154]
[1641362188307,2.88294028,169.06,168.97,8.56]
[1641362189528,2.88294028,169.06,168.97,9.06]
[1641362189930,2.88294028,169.06,168.97,9.32]
[1641362190830,3.38294028,169.06,168.97,9.32]
[1641362192431,2.88294028,169.06,168.97,9.32]
[1641362192633,1.6716697,169.08,168.97,9.32]
[1641362192835,1.6716697,169.08,168.98,23.6173]
[1641362193032,1.6716697,169.09,168.99,32.73785463]
[1641362193433,122.4798697,169.1,168.99,33.49785463]
[1641362193832,2.93338598,169.09,168.99,33.49785463]
[1641362194233,3.43338598,169.09,168.99,33.49785463]
[1641362201742,3.43338598,169.09,168.99,34.97631617]
[1641362202143,3.43338598,169.09,169.0,23.7756]
[1641362202343,3.43338598,169.09,169.01,8.56]
[1641362202543,3.43338598,169.09,169.01,8.82]
[1641362202943,3.43338598,169.09,169.01,9.32]
[1641362206847,3.43338598,169.09,169.01,9.06]
[1641362208349,3.43338598,169.09,169.01,9.32]
[1641362216585,3.43338598,169.09,169.01,9.06]
[1641362218184,3.43338598,169.09,169.01,8.56]
[1641362218985,3.43338598,169.09,169.01,8.82]
[1641362220792,3.43338598,169.09,169.01,9.32]
[1641362220988,3.43338598,169.09,169.01,10.79846154]
[1641362221586,3.43338598,169.09,169.01,9.32]
[1641362224894,3.43338598,169.09,169.01,9.06]
[1641362226295,3.43338598,169.09,169.01,9.32]
[1641362232602,3.43338598,169.09,169.01,8.82]
[1641362232903,3.43338598,169.09,169.01,9.32]
[1641362233902,3.43338598,169.09,169.01,0.5]
[1641362234102,3.43338598,169.09,168.98,8.56]
[1641362234403,3.43338598,169.09,168.98,9.06]
[1641362235404,3.43338598,169.09,168.98,9.32]
[1641362238811,3.43338598,169.09,168.98,9.06]
[1641362239713,5.10505568,169.09,168.98,9.06]
[1641362241013,5.10505568,169.09,168.98,9.32]
[1641362242637,3.43338598,169.09,168.98,9.32]
[1641362245042,3.69338598,169.09,168.98,9.06]
[1641362246643,3.69338598,169.09,168.98,9.32]
[1641362246840,3.69338598,169.09,168.98,9.06]
[1641362247443,3.69338598,169.09,168.98,8.56]
[1641362248342,3.69338598,169.09,168.98,8.82]
[1641362250346,3.69338598,169.09,168.98,9.32]
[1641362250549,5.36505568,169.09,168.98,8.82]
[1641362250847,5.36505568,169.09,168.98,9.32]
[1641362251248,1.6716697,169.08,168.98,9.32]
[1641362251447,14.40938067,169.07,168.98,9.32]
[1641362251647,24.8231,169.06,168.98,9.32]
[1641362251848,25.3231,169.06,168.98,9.32]
[1641362252047,25.3231,169.06,168.98,8.82]
[1641362252247,25.3231,169.06,168.98,9.06]
[1641362253648,25.3231,169.06,168.98,9.32]
[1641362254252,25.3231,169.06,168.98,8.82]
[1641362254450,25.3231,169.06,168.98,9.32]
[1641362255150,24.8231,169.06,168.98,8.82]
[1641362255449,25.3231,169.06,168.98,9.32]
[1641362258056,25.3231,169.06,168.98,8.82]
[1641362258856,25.3231,169.06,168.98,9.32]
[1641362259658,25.3231,169.06,168.98,8.56]
[1641362259858,25.3231,169.06,168.98,9.06]
[1641362260885,25.3231,169.06,168.98,9.32]
[1641362261087,34.3698,169.06,168.98,9.32]
[1641362262086,34.3698,169.06,168.98,8.82]
[1641362262986,34.3698,169.06,168.98,9.32]
[1641362264187,33.8698,169.06,168.98,8.82]
[1641362264486,1.6716697,169.08,168.98,9.32]
[1641362264686,1.6716697,169.08,168.98,16.593]
[1641362265087,1.6716697,169.08,168.99,0.06]
[1641362265290,1.6716697,169.11,169.0,8.56]
[1641362265489,1.6716697,169.11,169.01,47.56270025]
[1641362265687,110.4695697,169.14,169.02,8.56]
[1641362265890,110.4695697,169.14,169.03,22.6522]
[1641362266091,2.92493236,169.13,169.03,31.4722]
[1641362266290,2.92493236,169.13,169.03,31.9722]
[1641362269494,4.59660206,169.13,169.03,31.9722]
[1641362270295,2.92493236,169.13,169.03,31.9722]
[1641362272594,1.6716697,169.12,169.03,31.9722]
[1641362274197,4.59660206,169.13,169.03,31.9722]
[1641362276199,5.09660206,169.13,169.03,31.9722]
[1641362278602,1.6716697,169.12,169.03,31.9722]
[1641362281705,2.92493236,169.13,169.03,31.9722]
[1641362281907,3.42493236,169.13,169.03,31.9722]
[1641362283608,3.42493236,169.13,169.03,31.7122]
[1641362283808,3.42493236,169.13,169.03,31.2122]
[1641362284210,3.42493236,169.13,169.03,31.7122]
[1641362284811,3.42493236,169.13,169.03,31.9722]
[1641362288116,3.42493236,169.13,169.03,31.4722]
[1641362288317,3.42493236,169.13,169.03,8.82]
[1641362288516,3.68493236,169.13,169.03,8.82]
[1641362289318,3.68493236,169.13,169.03,8.56]
[1641362290516,3.68493236,169.13,169.03,8.82]
[1641362291119,1.6716697,169.12,169.03,8.82]
[1641362291518,2.1716697,169.12,169.03,8.82]
[1641362293320,1.6716697,169.11,169.03,8.82]
[1641362293722,2.1716697,169.11,169.03,8.82]
[1641362293923,2.1716697,169.11,169.03,8.56]
[1641362295220,2.1716697,169.11,169.03,8.82]
[1641362295822,0.5,169.11,169.03,8.82]
[1641362296224,2.4316697,169.12,169.03,8.82]
[1641362296624,1.6716697,169.11,169.03,8.82]
[1641362297031,2.1716697,169.11,169.03,8.82]
[1641362297431,2.4316697,169.11,169.03,8.82]
[1641362298731,2.4316697,169.11,169.03,8.56]
[1641362299733,1.6716697,169.1,169.03,8.56]
[1641362299935,2.1716697,169.1,169.03,8.56]
[1641362300134,2.4316697,169.1,169.03,8.82]
[1641362300333,0.76,169.1,169.03,8.82]
[1641362300835,2.4316697,169.11,169.03,8.82]
[1641362301736,1.6716697,169.1,169.03,8.82]
[1641362301965,2.4316697,169.1,169.03,8.82]
[1641362302365,2.4316697,169.1,169.03,0.26]
[1641362302666,2.4316697,169.1,168.99,23.1402]
[1641362302869,2.4316697,169.1,168.99,23.6402]
[1641362303469,2.4316697,169.1,168.99,32.2002]
[1641362305373,1.6716697,169.09,168.99,32.2002]
[1641362305770,2.1716697,169.09,168.99,32.2002]
[1641362306972,23.31040886,169.08,168.99,32.2002]
[1641362307175,23.8138,169.07,168.99,23.3802]
[1641362307372,2.33634521,169.06,168.99,23.3802]
[1641362307871,2.83634521,169.06,168.99,23.3802]
[1641362308273,2.83634521,169.06,168.99,0.5]
[1641362308473,2.83634521,169.06,168.97,23.5166]
[1641362308878,2.83634521,169.06,168.97,24.2766]
[1641362311676,2.33634521,169.06,168.97,24.2766]
[1641362314281,2.33634521,169.06,168.98,8.56]
[1641362314480,2.33634521,169.06,168.98,9.32]
[1641362320091,2.33634521,169.06,168.98,9.06]
[1641362321519,2.33634521,169.06,168.98,9.32]
[1641362323625,2.33634521,169.06,168.98,9.06]
[1641362324424,10.6680697,169.1,168.98,13.572]
[1641362324624,1.6716697,169.1,168.99,22.7701]
[1641362324825,1.6716697,169.1,169.0,8.56]
[1641362325025,1.6716697,169.1,169.0,10.29846154]
[1641362325226,1.6716697,169.1,169.0,10.79846154]
[1641362325426,3.00017446,169.09,169.01,23.6266]
[1641362325625,1.6716697,169.12,169.02,8.56]
[1641362325826,1.6716697,169.12,169.03,46.46612888]
[1641362326030,1.6716697,169.12,169.04,8.56]
[1641362326427,26.4202697,169.14,169.04,9.32]
[1641362326628,2.92454927,169.13,169.04,9.32]
[1641362326831,3.42454927,169.13,169.04,9.32]
[1641362331333,5.09621897,169.13,169.04,9.32]
[1641362331939,3.42454927,169.13,169.04,9.32]
[1641362332934,5.09621897,169.13,169.04,9.32]
[1641362334335,3.42454927,169.13,169.04,9.32]
[1641362336136,3.42454927,169.13,169.04,8.82]
[1641362356385,3.42454927,169.13,169.04,10.29846154]
[1641362363691,3.42454927,169.13,169.04,10.03846154]
[1641362363891,3.42454927,169.13,169.04,8.06]
[1641362364396,3.42454927,169.13,169.04,8.56]
[1641362365193,3.42454927,169.13,169.04,8.82]
[1641362367930,5.09621897,169.13,169.04,8.82]
[1641362368523,3.42454927,169.13,169.04,8.82]
[1641362368723,23.7266,169.12,169.04,8.82]
[1641362368926,24.2266,169.12,169.04,8.82]
[1641362375237,24.2266,169.12,169.04,8.32]
[1641362375435,24.2266,169.12,169.04,8.82]
[1641362376836,23.7266,169.12,169.04,8.82]
[1641362378242,24.2266,169.12,169.04,8.82]
[1641362379438,23.7266,169.12,169.04,8.82]
[1641362379837,24.2266,169.12,169.04,8.82]
[1641362382640,23.7266,169.12,169.04,8.82]
[1641362382841,24.2266,169.12,169.04,8.82]
[1641362385742,23.7266,169.12,169.04,8.56]
[1641362385943,24.2266,169.12,169.04,8.06]
[1641362386144,23.7266,169.12,169.04,8.06]
[1641362386344,24.2266,169.12,169.04,8.06]
[1641362387242,24.2266,169.12,169.04,8.32]
[1641362387642,24.2266,169.12,169.04,8.06]
[1641362388645,23.7266,169.12,169.04,8.06]
[1641362388847,24.2266,169.12,169.04,8.06]
[1641362389046,24.2266,169.12,169.04,8.32]
[1641362392076,25.8982697,169.12,169.04,8.32]
[1641362393074,25.8982697,169.12,169.04,8.06]
[1641362393274,25.8982697,169.12,168.99,7.65067443]
[1641362393275,31.2942697,169.12,169.0,8.56]
[1641362393475,31.2942697,169.12,168.98,8.56]
[1641362393678,74.0805,169.11,168.98,8.56]
[1641362393875,74.5805,169.11,168.98,8.56]
[1641362394078,76.31896154,169.11,168.98,8.56]
[1641362394278,24.6989697,169.1,168.98,8.56]
[1641362394476,22.2155823,169.09,168.98,8.82]
[1641362394677,23.2893,169.08,168.98,8.82]
[1641362394877,2.73637551,169.07,168.98,8.82]
[1641362395278,3.23637551,169.07,168.98,8.82]
[1641362395877,3.23637551,169.07,168.98,8.56]
[1641362396879,3.23637551,169.07,168.98,9.06]
[1641362397078,3.23637551,169.07,168.98,8.56]
[1641362397279,3.23637551,169.07,168.98,8.82]
[1641362397880,3.23637551,169.07,168.98,9.32]
[1641362401885,2.73637551,169.07,168.98,9.32]
[1641362403785,2.73637551,169.07,168.98,8.82]
[1641362404188,23.2893,169.08,168.98,8.82]
[1641362404386,23.2893,169.08,168.99,108.45846154]
[1641362404587,1.6716697,169.1,169.0,8.56]
[1641362404788,1.6716697,169.1,169.01,24.2984]
[1641362404988,1.6716697,169.1,169.02,115.54]
[1641362405188,2.99583297,169.14,169.03,25.4003597]
[1641362405388,3.49583297,169.14,169.04,8.56]
[1641362405589,27.39323297,169.14,169.04,10.29846154]
[1641362405792,27.39323297,169.14,169.04,10.79846154]
[1641362405991,27.39323297,169.14,169.05,1.47846154]
[1641362406190,27.39323297,169.14,169.06,8.56]
[1641362406393,27.39323297,169.14,169.06,9.06]
[1641362406592,27.39323297,169.14,169.06,10.79846154]
[1641362407793,26.89323297,169.14,169.06,10.79846154]
[1641362414400,26.89323297,169.14,169.06,10.53846154]
[1641362415799,26.89323297,169.14,169.06,10.79846154]
[1641362416402,26.89323297,169.14,169.06,9.32]
[1641362416799,26.89323297,169.14,169.06,9.34]
[1641362417500,26.89323297,169.14,169.06,8.58]
[1641362417700,26.89323297,169.14,169.06,0.02]
[1641362417904,27.15323297,169.14,169.06,0.02]
[1641362418301,1.6716697,169.12,169.06,0.02]
[1641362418502,2.78415251,169.11,169.06,0.02]
[1641362418901,3.54415251,169.11,169.06,0.02]
[1641362419102,1.6716697,169.1,169.06,0.02]
[1641362419502,2.1716697,169.1,169.06,0.02]
[1641362421208,22.08327048,169.09,169.06,0.02]
[1641362421408,2.569981,169.08,169.06,0.02]
[1641362421607,26.324081,169.08,169.06,0.02]
[1641362421908,94.03045822,169.07,169.06,0.02]
[1641362422706,94.03045822,169.07,168.99,8.56]
[1641362422908,94.79045822,169.07,168.99,8.56]
[1641362423108,94.53045822,169.07,168.99,8.56]
[1641362424008,94.53045822,169.07,168.99,8.82]
[1641362425513,6.53045822,169.07,168.99,8.82]
[1641362425912,6.03045822,169.07,168.99,8.82]
[1641362427415,6.53045822,169.07,168.99,8.82]
[1641362427813,6.03045822,169.07,168.99,8.82]
[1641362428016,6.53045822,169.07,168.99,8.82]
[1641362428215,6.03045822,169.07,168.99,8.82]
[1641362429017,6.03045822,169.07,168.99,9.32]
[1641362429417,6.03045822,169.07,168.99,8.82]
[1641362430723,6.53045822,169.07,168.99,8.82]
[1641362430919,6.03045822,169.07,168.99,9.32]
[1641362437848,6.03045822,169.07,168.99,9.06]
[1641362438949,6.53045822,169.07,168.99,9.06]
[1641362439249,6.03045822,169.07,168.99,9.06]
[1641362439648,6.53045822,169.07,168.99,8.56]
[1641362440849,6.53045822,169.07,168.99,8.82]
[1641362441452,26.324081,169.08,168.99,8.82]
[1641362441752,26.324081,169.08,168.99,15.923]
[1641362442349,2.569981,169.08,168.99,15.923]
[1641362445651,2.569981,169.08,168.99,17.40146154]
[1641362449252,2.569981,169.08,168.99,10.79846154]
[1641362449454,2.569981,169.08,168.99,10.53846154]
[1641362450856,2.569981,169.08,168.99,10.79846154]
[1641362454255,2.569981,169.08,168.99,9.32]
[1641362459394,2.569981,169.08,168.99,9.06]
[1641362460668,2.569981,169.08,168.99,9.32]
[1641362461268,2.569981,169.08,168.99,10.79846154]
[1641362464075,2.569981,169.08,168.99,9.32]
[1641362467201,2.21384748,169.08,168.99,9.32]
[1641362485756,2.21384748,169.08,168.99,10.79846154]
[1641362488061,2.21384748,169.08,168.99,9.32]
[1641362489761,2.21384748,169.08,168.99,10.79846154]
[1641362493164,2.21384748,169.08,168.99,9.32]
[1641362493364,2.21384748,169.08,168.99,8.82]
[1641362494864,2.21384748,169.08,168.99,9.32]
[1641362505514,2.21384748,169.08,168.99,8.56]
[1641362505718,2.71384748,169.08,168.95,8.56]
[1641362505917,3.15013124,169.07,168.95,8.56]
[1641362506111,3.41013124,169.07,168.95,8.56]
[1641362506314,3.91013124,169.07,168.95,8.56]
[1641362506515,24.2036,169.06,168.95,8.56]
[1641362506717,17.22548462,169.05,168.95,8.56]
[1641362506918,17.72548462,169.05,168.95,8.56]
[1641362507112,17.98548462,169.05,168.95,8.56]
[1641362507313,19.65715432,169.05,168.95,8.82]
[1641362507512,19.65715432,169.05,168.9,8.56]
[1641362507713,103.3504,169.04,168.9,8.56]
[1641362507914,103.8504,169.04,168.9,9.06]
[1641362508113,105.7820697,169.04,168.9,9.06]
[1641362509213,1.6716697,169.02,168.9,8.56]
[1641362509417,2.6075305,169.01,168.9,8.56]
[1641362509615,2.8675305,169.01,168.9,8.56]
[1641362509815,2.8675305,169.01,168.9,9.06]
[1641362509816,3.3675305,169.01,168.9,9.06]
[1641362510015,3.3675305,169.01,168.9,8.56]
[1641362510815,3.3675305,169.01,168.9,9.06]
[1641362511616,3.3675305,169.01,168.9,9.32]
[1641362513319,3.1075305,169.01,168.9,9.32]
[1641362514821,4.7792002,169.01,168.9,9.32]
[1641362517023,5.0392002,169.01,168.9,9.32]
[1641362517223,4.7792002,169.01,168.9,9.32]
[1641362517722,4.7792002,169.01,168.9,9.06]
[1641362518526,4.2792002,169.01,168.9,15.22]
[1641362519127,4.2792002,169.01,168.9,15.48]
[1641362519525,23.206,169.0,168.9,15.48]
[1641362530342,23.206,169.0,168.9,9.32]
[1641362530970,23.206,169.0,168.9,9.06]
[1641362532168,23.206,169.0,168.9,9.32]
[1641362533468,23.706,169.0,168.9,9.32]
[1641362534371,23.706,169.0,168.9,9.38]
[1641362534871,23.206,169.0,168.9,9.38]
[1641362536072,23.206,169.0,168.9,9.12]
[1641362536271,23.706,169.0,168.9,9.12]
[1641362536472,23.966,169.0,168.9,9.12]
[1641362536674,23.706,169.0,168.9,9.12]
[1641362536872,23.206,169.0,168.9,9.12]
[1641362537071,23.466,169.0,168.9,9.12]
[1641362537974,23.966,169.0,168.9,9.12]
[1641362538373,23.966,169.0,168.9,9.38]
[1641362539876,23.966,169.0,168.9,9.12]
[1641362541279,23.966,169.0,168.9,9.38]
[1641362544881,25.6376697,169.0,168.9,9.38]
[1641362545781,25.6376697,169.0,168.9,8.88]
[1641362545982,25.6376697,169.0,168.9,9.38]
[1641362546481,23.966,169.0,168.9,9.38]
[1641362547082,23.466,169.0,168.9,8.88]
[1641362551690,25.1376697,169.0,168.9,8.88]
[1641362552295,25.3776697,169.0,168.9,8.88]
[1641362552494,24.8776697,169.0,168.9,8.88]
[1641362552895,25.3776697,169.0,168.91,22.5381]
[1641362553095,25.3776697,169.0,168.91,22.7981]
[1641362553296,23.706,169.0,168.91,22.7981]
[1641362553595,23.206,169.0,168.91,22.7981]
[1641362563735,23.206,169.0,168.91,22.5381]
[1641362564135,23.466,169.0,168.91,22.5381]
[1641362564937,23.206,169.0,168.91,22.5381]
[1641362565140,23.466,169.0,168.91,22.5381]
[1641362565739,25.1376697,169.0,168.91,22.5381]
[1641362566038,25.1376697,169.0,168.91,22.7981]
[1641362566539,24.8776697,169.0,168.91,22.7981]
[1641362566739,25.1376697,169.0,168.91,22.7981]
[1641362567542,24.8776697,169.0,168.91,22.7981]
[1641362568044,25.1376697,169.0,168.91,22.7981]
[1641362569648,24.8776697,169.0,168.91,22.7981]
[1641362570249,25.1376697,169.0,168.91,22.7981]
[1641362572248,25.1376697,169.0,168.88,23.77750768]
[1641362572448,25.1376697,169.0,168.89,22.6076]
[1641362573553,25.1376697,169.0,168.89,22.8676]
[1641362579855,25.1376697,169.0,168.89,0.26]
[1641362580055,2.55786062,168.98,168.88,24.7723]
[1641362580256,32.94070813,168.98,168.88,24.7723]
[1641362580456,32.94070813,168.98,168.88,25.0323]
[1641362580658,23.3533,168.97,168.88,25.0323]
[1641362581856,23.3533,168.97,168.89,8.56]
[1641362582056,23.3533,168.97,168.89,8.82]
[1641362585861,2.55786062,168.98,168.89,8.82]
[1641362586460,26.76796062,168.98,168.89,8.82]
[1641362587363,2.55786062,168.98,168.89,8.82]
[1641362588763,25.07606062,168.98,168.89,8.82]
[1641362598776,25.07606062,168.98,168.89,8.56]
[1641362600278,25.07606062,168.98,168.89,8.82]
[1641362607011,25.07606062,168.98,168.89,9.32]
[1641362611718,25.07606062,168.98,168.89,9.06]
[1641362613021,25.07606062,168.98,168.89,9.32]
[1641362626958,25.57606062,168.98,168.89,8.56]
[1641362627159,25.57606062,168.98,168.88,24.7723]
[1641362627160,25.57606062,168.98,168.86,8.56]
[1641362627359,1.47846154,168.97,168.83,8.56]
[1641362627559,1.6716697,168.96,168.83,8.56]
[1641362627960,15.60345388,168.95,168.83,8.56]
[1641362628158,38.38485388,168.95,168.84,24.409]
[1641362628360,40.55652358,168.95,168.84,24.409]
[1641362628757,40.55652358,168.95,168.84,24.669]
[1641362629158,40.55652358,168.95,168.84,25.169]
[1641362629358,40.55652358,168.95,168.84,24.909]
[1641362630660,40.55652358,168.95,168.84,25.169]
[1641362632267,40.55652358,168.95,168.84,24.669]
[1641362634866,40.55652358,168.95,168.84,25.169]
[1641362637766,40.55652358,168.95,168.84,33.729]
[1641362639566,38.88485388,168.95,168.84,33.729]
[1641362642368,38.88485388,168.95,168.84,9.32]
[1641362643271,38.88485388,168.95,168.84,9.06]
[1641362643568,39.14485388,168.95,168.84,8.56]
[1641362644571,39.14485388,168.95,168.84,8.82]
[1641362644871,39.14485388,168.95,168.84,8.56]
[1641362645169,1.3168,168.94,168.84,8.56]
[1641362645372,1.8168,168.94,168.84,8.56]
[1641362646370,1.8168,168.94,168.84,8.82]
[1641362651274,2.0768,168.94,168.84,8.82]
[1641362651872,3.7484697,168.94,168.84,8.82]
[1641362652274,3.2484697,168.94,168.84,8.82]
[1641362653483,3.7484697,168.94,168.84,8.82]
[1641362653687,23.4387,168.93,168.84,8.82]
[1641362653883,2.17405325,168.92,168.84,8.82]
[1641362654284,2.67405325,168.92,168.84,8.56]
[1641362654483,2.93405325,168.92,168.82,1.3589]
[1641362654683,1.3288,168.91,168.82,1.3589]
[1641362654883,1.8288,168.91,168.82,1.3589]
[1641362655086,2.0888,168.91,168.82,1.3589]
[1641362656287,3.7604697,168.91,168.82,1.3589]
[1641362657184,3.7604697,168.91,168.79,1.3618]
[1641362657385,1.6716697,168.9,168.8,1.3479]
[1641362657591,1.9316697,168.9,168.8,1.3479]
[1641362657788,2.4316697,168.9,168.8,1.8479]
[1641362658721,27.14732318,168.88,168.8,1.8479]
[1641362658923,24.9326,168.87,168.8,1.8479]
[1641362659122,2.22623533,168.86,168.8,1.8479]
[1641362659520,2.22623533,168.86,168.8,2.1079]
[1641362659721,2.22623533,168.86,168.8,1.8479]
[1641362661022,2.22623533,168.86,168.8,2.1079]
[1641362667025,2.72623533,168.86,168.8,2.1079]
[1641362668025,1.6716697,168.9,168.8,10.7279]
[1641362668428,1.6716697,168.9,168.82,0.06]
[1641362668626,1.6716697,168.94,168.83,8.56]
[1641362668827,1.6716697,168.94,168.83,9.06]
[1641362669027,2.74049524,168.93,168.83,9.32]
[1641362669458,2.74049524,168.93,168.83,34.8599]
[1641362670229,22.96454891,168.94,168.83,34.8599]
[1641362670429,22.96454891,168.94,168.84,1.47846154]
[1641362670629,22.96454891,168.94,168.85,8.56]
[1641362671033,22.96454891,168.94,168.85,9.32]
[1641362671232,25.21270362,168.94,168.85,9.32]
[1641362671433,25.21270362,168.94,168.85,10.6439]
[1641362677465,25.21270362,168.94,168.85,9.8839]
[1641362677665,31.59770362,168.94,168.85,1.3239]
[1641362677867,1.6716697,168.93,168.83,24.2961]
[1641362678073,26.5839697,168.93,168.83,24.2961]
[1641362678367,27.0839697,168.93,168.83,24.2961]
[1641362678965,27.0839697,168.93,168.83,24.5561]
[1641362679366,27.0839697,168.93,168.84,1.3405]
[1641362679569,27.0839697,168.93,168.84,1.6005]
[1641362680467,27.3439697,168.93,168.84,1.6005]
[1641362680966,27.0839697,168.93,168.84,1.6005]
[1641362681166,1.6716697,168.92,168.84,1.6005]